Cogmind - Beta 16.1 @@@ ROGUE MODE // 2026.04.12 @ 23:25:40 Player: Keestofa Result: Destroyed by Y-54 Guardian with Gatling Laser Performance ------------- Evolutions (4) 2000 Regions Visited (7) 1400 Robots Destroyed (125) 625 Value Destroyed (3434) 3434 Prototype IDs (4) 80 Alien Tech Used (0) 0 Bonus (37) 37 TOTAL SCORE: 7576 Bonus ------- High Alert Combat Kills 37 Cogmind --------- Core Integrity 0/850 Matter 57/300 Energy 100/100 System Corruption 24% Temperature Cool (13) Movement Flying (35) Location -6/Factory Parts ------- > --- POWER (2) -------- (None) > --- PROPULSION (5) --- Surge Thruster > --- UTILITY (5) ------ Focal Shield EM Shield > --- WEAPON (3) ------- (None) > --- INVENTORY (5) ---- Light Angular Momentum Engine Small Storage Unit Phase Shifter Hypervelocity Gauss Rifle Remote Datajack Peak State ------------ > --- POWER ------------ Improved Deuterium Engine Micro Nuclear Core > --- PROPULSION ------- Carbon-fiber Leg Carbon-fiber Leg Carbon-fiber Leg Carbon-fiber Leg Armored Leg > --- UTILITY ---------- Large Storage Unit Kinecellerator Focal Shield Hacking Suite High-powered Tractor Beam > --- WEAPON ----------- Heavy EM Shotgun High-powered Shock Rifle Coil Gun > --- INVENTORY -------- Light Fission Core Light Fission Core Carbon-fiber Leg Carbon-fiber Leg Heavy EM Shotgun Heavy EM Shotgun Heavy EM Shotgun Precision Shock Rifle Gatling Laser Plasma Rifle Improved Proton Missile Launcher Remote Datajack [Rating: 60] Favorites ----------- Power Improved Ion Engine Engine Improved Ion Engine Power Core Micro Nuclear Core Propulsion Carbon-fiber Leg Treads Light Treads Leg Carbon-fiber Leg Wheel Compact Wheel Hover Unit Gravmag Array Flight Unit Surge Thruster Utility Large Storage Unit Device Improved Heat Sink Storage Large Storage Unit Processor Targeting Computer Hackware Hacking Suite Protection Reactive Plating Weapon Advanced Beam Rifle Energy Gun Advanced Beam Rifle Energy Cannon EM Pulse Cannon Ballistic Gun Assault Rifle Ballistic Cannon Gauss Cannon Launcher Improved Proton Missile Launcher Special Weapon Remote Datajack Slashing Weapon Axe Build | -11 -10 -10 -9 -9 -8 -7 -6 ------- Run | Yrd Mat Min Mat Min Mat Fac Fac Slots Evolved 8 | . . . 2 . 2 2 2 Power 1 | . . . . . . . 1 Propulsion 3 | . . . 2 . . . 1 Utility 3 | . . . . . 2 1 . Weapon 1 | . . . . . . 1 . Parts Attached 125 | 8 10 6 7 . 13 13 68 Power 20 | 1 2 2 . . . 1 14 Engine 14 | 1 2 2 . . . 1 8 Core 6 | . . . . . . . 6 Reactor . | . . . . . . . . Propulsion 37 | 2 3 2 3 . 3 6 18 Treads 9 | . 3 2 . . 2 2 . Leg 21 | 2 . . 3 . 1 4 11 Wheel 5 | . . . . . . . 5 Hover 1 | . . . . . . . 1 Flight 1 | . . . . . . . 1 Utility 34 | 3 3 1 1 . 4 3 19 Device 19 | 2 1 . 1 . . . 15 Storage 5 | 1 1 . . . 1 . 2 Processor 3 | . . . . . 2 . 1 Hackware 3 | . . . . . . 2 1 Protection 4 | . 1 1 . . 1 1 . Artifact . | . . . . . . . . Weapon 34 | 2 2 1 3 . 6 3 17 Energy Gun 18 | 2 . 1 2 . 4 1 8 Energy Cannon 3 | . . . . . 2 . 1 Ballistic Gun 7 | . 2 . 1 . . . 4 Ballistic Cannon 3 | . . . . . . . 3 Launcher 1 | . . . . . . . 1 Special Weapon 1 | . . . . . . 1 . Impact Weapon . | . . . . . . . . Slashing Weapon 1 | . . . . . . 1 . Piercing Weapon . | . . . . . . . . Special Melee Weapon . | . . . . . . . . Unidentified Prototypes 4 | . . . . . 1 1 2 Corrupted Parts 1 | . . . . . . . 1 System Corruption 7 | . . . . . . . 7 Parts Lost 63 | . 1 . 2 . 2 1 57 Power 10 | . 1 . . . . . 9 Propulsion 16 | . . . . . . . 16 Utility 17 | . . . 1 . 1 1 14 Weapon 20 | . . . 1 . 1 . 18 Highest Loss Streak 18 | . 1 . 2 . 1 1 18 To Critical Strikes . | . . . . . . . . Average Backups 12 | 2 11 15 13 15 14 14 10 Power 1 | . . 1 1 2 2 2 1 Propulsion 2 | 1 2 4 2 3 2 1 2 Utility 3 | . 4 6 5 5 3 3 . Weapon 4 | . 3 4 4 5 5 6 5 Tool/Special . | . . . . . . . . Unused Backups 20 | . 6 1 . . 5 6 2 Power 3 | . 1 . . . . 1 1 Propulsion 1 | . 1 . . . . . . Utility 8 | . 3 1 . . 2 2 . Weapon 7 | . 1 . . . 3 2 1 Tool/Special 1 | . . . . . . 1 . Average Slot Usage (%) 90 | . 98 100 98 100 95 99 73 Engine 8 | . 13 14 11 11 8 7 6 Core 1 | . . . . . . . 3 Treads 11 | . 23 28 . . 11 19 1 Leg 17 | . 4 . 42 44 24 10 19 Device 9 | . 4 . 8 11 8 14 10 Storage 9 | . 14 14 11 11 9 7 7 Processor 4 | . . . . . 14 5 . Protection 4 | . 9 14 2 . . 7 1 Energy Gun 11 | . 8 10 19 22 15 14 5 Energy Cannon 1 | . . . . . 2 . 1 Ballistic Gun 5 | . 19 17 2 . . . 5 Slashing Weapon 1 | . . . . . . 7 . Peak Build Rating 60 | 7 8 10 16 16 27 45 60 Average Rating 26 | 5 7 9 14 16 22 35 39 On Entrance 16 | . 7 8 10 16 16 27 45 Avg Prop Armor Cover (%) 8 | . . . . . . . 8 Naked Turns 6 | . . . . . . . 6 Heaviest Build 60 | 13 32 34 34 34 42 51 60 Greatest Support 80 | 20 40 40 40 40 80 80 80 Greatest Overweight (x) 19 | 1 . . . . 2 1 19 Average Overweight (x) . | . . . . . . . . Largest Inventory Capacity 15 | 8 15 15 15 15 15 15 15 Average Capacity 14 | 7 13 15 15 15 15 15 14 Most Carried 15 | 4 15 15 15 15 15 15 15 Average Carried 12 | 2 11 15 13 15 14 14 10 Final Capacity 15 | 8 15 15 15 15 15 15 5 Final Carried 15 | 4 15 15 15 15 13 15 5 Class Distribution -------------------- 40% | Scavenger-Mutant 35% | Mutant 9% | Scavenger-Gunner 5% | Scavenger-Skirmisher 4% | Skirmisher 3% | Gunner Dominant Class ---------------- Mutant | -10/Materials Mutant | -10/Mines Scavenger-Mutant | -9/Materials Scavenger-Mutant | -9/Mines Scavenger-Mutant | -8/Materials Scavenger-Mutant | -7/Factory Scavenger-Gunner | -6/Factory Resources | -11 -10 -10 -9 -9 -8 -7 -6 ----------- Run | Yrd Mat Min Mat Min Mat Fac Fac Matter Collected 3139 | 280 501 118 151 . 200 300 1589 Remotely 355 | 87 . . . . . . 268 Salvage Created 5589 | 144 696 289 529 . 443 312 3176 Parts 286 | 10 40 16 30 . 20 14 156 Haulers Intercepted 7 | . 2 . 2 . 1 . 2 Recyclers Shooed 12 | 1 1 1 . . . . 9 Parts Field Recycled . | . . . . . . . . Retrieved Matter . | . . . . . . . . Parts Self-Destructed . | . . . . . . . . Prevented . | . . . . . . . . Parts Restored . | . . . . . . . . Kills | -11 -10 -10 -9 -9 -8 -7 -6 ------- Run | Yrd Mat Min Mat Min Mat Fac Fac Combat Hostiles Destroyed 71 | . 11 5 10 . 8 5 32 Melee 3 | . . . . . . 2 1 Guns 52 | . 11 5 9 . 7 2 18 Cannons 9 | . . . . . . . 9 AOE 3 | . . . 1 . . . 2 Classes Destroyed 17 | 2 6 1 1 . 1 . 6 Worker 12 | . 1 . . . . . 11 Builder 8 | . 1 . 1 . . . 6 Tunneler 3 | 3 . . . . . . . Hauler 7 | . 2 . 2 . 1 . 2 Recycler 12 | 1 1 1 . . . . 9 Mechanic 1 | . . . . . . . 1 Operator 2 | . . . . . 1 1 . Watcher 9 | . 2 . 1 . 2 . 4 Swarmer 15 | . 3 1 3 . 3 . 5 Cutter 2 | . . . . . . . 2 Grunt 39 | . 8 2 5 . 4 3 17 Brawler 1 | . . . 1 . . . . Duelist 1 | . . . . . . . 1 Sentry 6 | . . 2 1 . 1 2 . Hunter 3 | . . . . . . . 3 Programmer 3 | . . . . . . . 3 Behemoth 1 | . . . . . . . 1 Best Kill Streak 29 | 3 5 3 6 . 3 3 29 Combat Bots Only 10 | . 5 2 4 . 3 3 10 Max Kills in Single Turn 5 | 2 1 1 2 . 2 1 5 Gunslinging 1 | . . . . . . . 1 Exploded 1 | . . . 1 . . . 1 Melee 1 | . . . . . . 1 1 Uniques/NPCs Destroyed . | . . . . . . . . Combat | -11 -10 -10 -9 -9 -8 -7 -6 -------- Run | Yrd Mat Min Mat Min Mat Fac Fac Hostile Shots Fired 743 | . 64 12 61 . 31 115 460 Missed 201 | . 15 2 19 . 10 45 110 Hits 542 | . 49 10 42 . 21 70 350 Melee 9 | . . . 2 . . . 7 Projectile 533 | . 49 10 40 . 21 70 343 Critical Strikes 20 | . 1 . 1 . . . 18 Part Disruptions 1 | . . . . . . . 1 Damage Taken 8493 | . 543 140 538 . 309 492 6471 Core 1180 | . 106 . 98 . 64 61 851 Absorbed by Shields . | . . . . . . . . Ignored by Resistances 289 | . . . . . 4 68 217 Regen/Repaired (Parts) 227 | . 64 . . . 163 . . Core Remaining (%) 82 | 100 . 57 . 75 88 91 . Volleys Fired 315 | 10 55 11 44 . 27 16 152 Largest 3 | 2 2 2 2 . 2 2 3 Hottest 205 | 100 100 60 121 . 126 122 205 Shots Fired 699 | 20 110 22 88 . 54 32 373 Gun 574 | 20 110 22 88 . 43 32 259 Cannon 124 | . . . . . 11 . 113 Launcher 1 | . . . . . . . 1 Special . | . . . . . . . . Kinetic 338 | . 82 16 12 . . . 228 Thermal 246 | 20 28 . 48 . 43 32 75 Explosive . | . . . . . . . . Electromagnetic 115 | . . 6 28 . 11 . 70 Robot Hit Streak 26 | 2 15 11 11 . 16 23 26 Robot Miss Streak 12 | 3 3 1 3 . 2 2 12 Penetration Max 1 | . . . . . . . 1 Secondary Targets 12 | . 4 . 1 . . . 7 Max Gunslinging Chain 1 | . 1 . 1 . . . 1 Shots Hit Robots 440 | 8 78 17 55 . 43 28 211 Core Hits 212 | 5 30 11 20 . 16 9 121 Critical Kills . | . . . . . . . . Critical Parts Destroyed 3 | . 1 . . . . . 2 Critical Strikes 22 | 1 3 . 1 . 2 . 15 Burn 11 | 1 2 . 1 . 2 . 5 Destroy 3 | . 1 . . . . . 2 Blast 7 | . . . . . . . 7 Corrupt 1 | . . . . . . . 1 Melee Attacks 23 | . . . . . . 10 13 Impact . | . . . . . . . . Slashing 23 | . . . . . . 10 13 Piercing . | . . . . . . . . Sneak Attacks 1 | . . . . . . . 1 Combat Hostiles . | . . . . . . . . Follow-up Attacks . | . . . . . . . . Damage Inflicted 10713 | 126 1017 201 859 . 897 579 7034 Guns 6869 | 126 1017 201 784 . 645 520 3576 Cannons 1933 | . . . . . 252 . 1681 Explosions 1607 | . . . 75 . . . 1532 Melee 247 | . . . . . . 59 188 Ramming 57 | . . . . . . . 57 Kinetic 4326 | . 794 142 101 . . . 3289 Thermal 3523 | 126 223 . 519 . 645 520 1490 Explosive 885 | . . . . . . . 885 Electromagnetic 1675 | . . 59 239 . 252 . 1125 Impact . | . . . . . . . . Slashing 247 | . . . . . . 59 188 Piercing . | . . . . . . . . Highest Corruption 24 | . . . 5 5 . . 24 Average Corruption 12 | . . . 5 5 . . 14 Corruption Purged . | . . . . . . . . Corruption Blocked . | . . . . . . . . Effects 56 | . . . 8 1 . . 47 Message Errors 13 | . . . 2 . . . 11 Matter Fused 13 | . . . 3 . . . 10 Heat Flow Errors 5 | . . . . 1 . . 4 Energy Discharges 6 | . . . . . . . 6 Parts Rejected 1 | . . . . . . . 1 Data Loss (minor) 8 | . . . 2 . . . 6 Data Loss (major) 1 | . . . . . . . 1 Misfires 2 | . . . 1 . . . 1 Misdirections 1 | . . . . . . . 1 Weapon Failures 6 | . . . . . . . 6 Overload Shots . | . . . . . . . . Overflow Damage 80 | . . . . . . . 80 Projectiles 1 | . . . . . . . 1 Explosions 79 | . . . . . . . 79 Melee . | . . . . . . . . Knockbacks 15 | . . . . . . . 15 Impact . | . . . . . . . . Kinetic 14 | . . . . . . . 14 Secondary 1 | . . . . . . . 1 Self-Inflicted Damage 234 | . . . 30 . . . 204 Shots 4 | . . . 1 . . . 3 Rammed 2 | . . . . . . . 2 Targets Rammed 7 | . . . . . . . 7 Kicked 5 | . . . . . . . 5 Crushed . | . . . . . . . . Highest Temperature 698 | 217 415 27 90 259 63 152 698 Average Temperature 142 | 87 122 11 24 131 23 57 209 Received Heat Transfer 2340 | . 297 54 177 . 153 174 1485 Effects 54 | . 3 . . . . . 51 Shutdowns 17 | . 1 . . . . . 16 Energy Bleed 9 | . 1 . . . . . 8 Interference 6 | . . . . . . . 6 Matter Decay 6 | . . . . . . . 6 Short Circuit 6 | . . . . . . . 6 Damage (minor) 3 | . 1 . . . . . 2 Damage (major) 7 | . . . . . . . 7 Siege Activations . | . . . . . . . . Martial Activations . | . . . . . . . . Shielding Activations . | . . . . . . . . Robots Disrupted . | . . . . . . . . Combat Hostiles . | . . . . . . . . Robots Corrupted 4 | . . . 1 . 1 . 2 Combat Hostiles 3 | . . . . . 1 . 2 Parts Fried 7 | . . . 1 . 2 . 4 Impact Corruptions . | . . . . . . . . Robots Melted 1 | . . . . . . 1 . Combat Hostiles 1 | . . . . . . 1 . Parts Melted 22 | 1 3 . 3 . 5 4 6 Heat Transferred 7650 | 444 814 . 1197 . 1480 962 2753 Parts Sabotaged . | . . . . . . . . Parts Stolen . | . . . . . . . . Parts Stripped . | . . . . . . . . Power Chain Reactions 5 | . . . 1 . . . 4 Alert | -11 -10 -10 -9 -9 -8 -7 -6 ------- Run | Yrd Mat Min Mat Min Mat Fac Fac Maximum Alert Level 2 | . . . . . . . 2 Low Security (%) 80 | 100 100 100 100 100 100 100 38 Level 1 12 | . . . . . . . 39 Level 2 7 | . . . . . . . 21 Level 3 . | . . . . . . . . Level 4 . | . . . . . . . . Level 5 . | . . . . . . . . High Security . | . . . . . . . . Max Security . | . . . . . . . . Peak Influence 476 | 15 113 90 167 54 70 68 476 Initial 54 | . 3 40 25 54 16 25 . Average 97 | 1 18 69 107 53 7 12 248 Influence Increases 2384 | 20 308 115 286 . 229 141 1285 Destroy 0b10 Robot/C 1420 | . 220 100 200 . 160 100 640 Destroy 0b10 Robot/NC 270 | 20 35 5 20 . 20 5 165 Destroy Leader 292 | . 48 10 46 . 26 30 132 Successful Hack 14 | . 4 . 2 . 8 . . Disable Machine 195 | . . . . . 15 . 180 Destroy Structure 73 | . 1 . 3 . . 6 63 Lose Combat Pursuer 120 | . . . 15 . . . 105 Influence Decreases 2004 | 15 209 154 210 97 215 199 905 Entered New Map 254 | . 2 64 40 87 28 33 . Time Decay 1212 | 15 197 90 150 10 170 156 424 Lost Part 538 | . 10 . 20 . 17 10 481 Squads Dispatched 14 | . 1 . . . 1 1 11 Investigation 1 | . . . . . . . 1 Extermination 4 | . . . . . . 1 3 Reinforcement 7 | . 1 . . . 1 . 5 Assault . | . . . . . . . . Garrison 2 | . . . . . . . 2 Intercept . | . . . . . . . . Searches Triggered . | . . . . . . . . Construction Impeded 1 | . . . . . . . 1 Haulers Reinforced 2 | . . . . . . . 2 Active Scanning Responses . | . . . . . . . . Cargo Convoy Interrupts . | . . . . . . . . Stealth | -11 -10 -10 -9 -9 -8 -7 -6 --------- Run | Yrd Mat Min Mat Min Mat Fac Fac Distress Signals 6 | . 2 . 1 . . . 3 Communications Jammed . | . . . . . . . . Distress Signals . | . . . . . . . . Times Spotted 108 | . 16 5 15 . 14 6 52 Peak Tracking Total 7 | . 4 2 5 . 3 3 7 Tactical Retreats 4 | . . . 1 . . . 3 Traps | -11 -10 -10 -9 -9 -8 -7 -6 ------- Run | Yrd Mat Min Mat Min Mat Fac Fac Traps Triggered 3 | . . . . . . . 3 Indirectly . | . . . . . . . . Trap Hack Attempts . | . . . . . . . . Triggered . | . . . . . . . . Disarmed . | . . . . . . . . Reprogrammed . | . . . . . . . . Reused . | . . . . . . . . Traps Extracted . | . . . . . . . . Installed . | . . . . . . . . Triggered . | . . . . . . . . Machines | -11 -10 -10 -9 -9 -8 -7 -6 ---------- Run | Yrd Mat Min Mat Min Mat Fac Fac Machines Disabled 13 | . . . . . 1 . 12 Max in Single Turn 8 | . . . . . 1 . 8 Garrison Access 2 | . . . . . 1 1 . Machines Repaired . | . . . . . . . . Machines Dismantled . | . . . . . . . . Machines Sabotaged . | . . . . . . . . Overloaded Fab Kills . | . . . . . . . . Hacking | -11 -10 -10 -9 -9 -8 -7 -6 --------- Run | Yrd Mat Min Mat Min Mat Fac Fac Machines Accessed 14 | . 3 1 1 . 6 1 2 Terminals 7 | . 2 1 . . 4 . . Fabricators . | . . . . . . . . Repair Stations 3 | . 1 . . . 1 . 1 Recycling Units . | . . . . . . . . Scanalyzers 1 | . . . 1 . . . . Garrison Access 3 | . . . . . 1 1 1 Total Hacks 38 | . 6 2 2 . 22 3 3 Successful 19 | . 3 1 1 . 13 1 . Failed 19 | . 3 1 1 . 9 2 3 Catastrophic 2 | . . . . . . . 2 Database Lockouts . | . . . . . . . . Manual . | . . . . . . . . Terminals 15 | . 4 2 . . 9 . . Fabricators . | . . . . . . . . Repair Stations 15 | . 2 . . . 12 . 1 Recycling Units . | . . . . . . . . Scanalyzers 2 | . . . 2 . . . . Garrison Access 6 | . . . . . 1 3 2 Terminal Hacks 6 | . 1 1 . . 4 . . Record 1 | . . 1 . . . . . Locate Traps 2 | . 1 . . . 1 . . Investigation Status 2 | . . . . . 2 . . Reinforcement Status 1 | . . . . . 1 . . Fabricator Hacks . | . . . . . . . . Repair Station Hacks 10 | . 2 . . . 8 . . Scan Component 5 | . 1 . . . 4 . . Repair 5 | . 1 . . . 4 . . Recycling Unit Hacks . | . . . . . . . . Scanalyzer 1 | . . . 1 . . . . Retrieve Study 1 | . . . 1 . . . . Garrison Access Hacks 2 | . . . . . 1 1 . Seal Access 2 | . . . . . 1 1 . Unauthorized Hacks . | . . . . . . . . Terminals . | . . . . . . . . Fabricators . | . . . . . . . . Repair Stations . | . . . . . . . . Recycling Units . | . . . . . . . . Scanalyzers . | . . . . . . . . Garrison Access . | . . . . . . . . Data Cores Recovered 2 | . . . . . 1 1 . Used . | . . . . . . . . Hacking Detections 12 | . 3 1 1 . 5 1 1 Full Trace Events 1 | . . . . . . . 1 Feedback Events . | . . . . . . . . Feedback Blocked . | . . . . . . . . Robot Schematics Acquired . | . . . . . . . . Robots Built . | . . . . . . . . Authchips . | . . . . . . . . Time . | . . . . . . . . Total Robot Build Rating . | . . . . . . . . Part Schematics Acquired . | . . . . . . . . Parts Built . | . . . . . . . . Authchips . | . . . . . . . . Time . | . . . . . . . . Total Part Build Rating . | . . . . . . . . Part Studies Acquired 1 | . . . 1 . . . . Parts Repaired 5 | . 1 . . . 4 . . Time 148 | . 26 . . . 122 . . Parts Recycled . | . . . . . . . . Recycled Matter . | . . . . . . . . Retrieved Matter . | . . . . . . . . Retrieved Components . | . . . . . . . . Parts Scanalyzed . | . . . . . . . . Part Schematics Acquired . | . . . . . . . . Parts Damaged . | . . . . . . . . Bothacking | -11 -10 -10 -9 -9 -8 -7 -6 ------------ Run | Yrd Mat Min Mat Min Mat Fac Fac Used RIF Installer . | . . . . . . . . Robots Hacked . | . . . . . . . . Non-combat . | . . . . . . . . Combat . | . . . . . . . . Robot Hacks Applied . | . . . . . . . . Relay Couplers Released . | . . . . . . . . Fabnet Peak Effective % . | . . . . . . . . Robots Rewired . | . . . . . . . . Allies Hacked . | . . . . . . . . Hacks Repelled . | . . . . . . . . Allies | -11 -10 -10 -9 -9 -8 -7 -6 -------- Run | Yrd Mat Min Mat Min Mat Fac Fac Total Allies . | . . . . . . . . Largest Group . | . . . . . . . . Highest-Rated Group . | . . . . . . . . Highest-Rated Ally . | . . . . . . . . Total Orders . | . . . . . . . . Ally Attacks . | . . . . . . . . Total Damage . | . . . . . . . . Kills . | . . . . . . . . Allies Corrupted . | . . . . . . . . Allies Melted . | . . . . . . . . Intel | -11 -10 -10 -9 -9 -8 -7 -6 ------- Run | Yrd Mat Min Mat Min Mat Fac Fac Active Infowar (turns) 1614 | 8 203 . . . . 775 628 Sensors 134 | . . . . . . . 134 IFF 2 | . . . . . . . 2 Structural 311 | . . . . . . . 311 Seismic 1167 | 8 203 . . . . 775 181 Robot Analysis Total . | . . . . . . . . Derelict Logs Recovered . | . . . . . . . . Drone Launches . | . . . . . . . . Drone Recoveries . | . . . . . . . . Exploration | -11 -10 -10 -9 -9 -8 -7 -6 ------------- Run | Yrd Mat Min Mat Min Mat Fac Fac Turns Passed 4505 | 116 688 194 304 21 949 776 1457 Spaces Moved 2154 | 61 271 89 110 21 545 433 624 Core 18 | 6 . . . . . . 12 Treads 737 | . 201 89 . . 176 261 10 Legs 1146 | 55 70 . 110 21 369 172 349 Wheels 63 | . . . . . . . 63 Hover . | . . . . . . . . Flight 190 | . . . . . . . 190 Fastest Speed 35 | 50 120 160 105 105 105 120 35 Average Speed 127 | 114 149 160 113 105 125 146 107 Slowest Speed 1000 | 190 160 160 120 105 260 190 1000 Overloaded Moves . | . . . . . . . . Propulsion Burnouts . | . . . . . . . . Robots Hopped 1 | . . . . . . . 1 Potential Cave-ins . | . . . . . . . . Cave-ins Triggered . | . . . . . . . . Exploration Rate (%) 24 | 3 59 24 19 9 46 17 18 Regions Visited 7 Branch Regions 2 Pre-discovered Areas . | . . . . . . . . Known Exits Taken . | . . . . . . . . Unknown Exits Taken 7 | 1 1 1 1 1 1 1 . Scrap Searched . | . . . . . . . . Spaces Dug 13 | . . . . . . 6 7 Terrain Destroyed 70 | . . . 2 . . 6 62 Melee 13 | . . . . . . 6 7 Projectile 17 | . . . . . . . 17 AOE 40 | . . . 2 . . . 38 Terrain Rammed . | . . . . . . . . Walls Destroyed . | . . . . . . . . Machines Disabled . | . . . . . . . . Actions | -11 -10 -10 -9 -9 -8 -7 -6 --------- Run | Yrd Mat Min Mat Min Mat Fac Fac Total 3250 | 84 448 125 200 20 762 534 1077 Wait 414 | . 81 7 33 . 141 21 131 Move 2145 | 60 270 88 109 20 544 432 622 Hop 1 | . . . . . . . 1 Pick Up 79 | 4 20 3 3 . 12 16 21 Fast Attach 59 | 8 1 1 . . 7 5 37 Attach 47 | . 1 . 4 . 4 5 33 Detach 14 | 1 . . . . 1 1 11 Swap 49 | . 9 6 6 . 9 8 11 Drop 82 | 1 11 9 1 . 17 20 23 Fire 315 | 10 55 11 44 . 27 16 152 Melee 23 | . . . . . . 10 13 Ram 2 | . . . . . . . 2 Kick 5 | . . . . . . . 5 Crush . | . . . . . . . . Escape Stasis 15 | . . . . . . . 15 Rewire . | . . . . . . . . Trap . | . . . . . . . . Miscellaneous . | . . . . . . . . Route ------- -11/Scrapyard -10/Materials (discovered 3 exits: *Mat / *Min x2) -10/Mines -9/Materials -9/Mines -8/Materials -7/Factory -6/Factory History --------- Turn | Location | Event 3 | -11/Scrapyard | Discovered new exit (range 15) 117 | -11/Scrapyard | Entered Materials 316 | -10/Materials | Build established: Mutant 350 | -10/Materials | Discovered new exit (range 6) 446 | -10/Materials | Discovered new exit (range 16) 700 | -10/Materials | Repaired Lgt. Armor Plating 722 | -10/Materials | Discovered new exit (range 16) 805 | -10/Materials | Entered Mines 967 | -10/Mines | Discovered new exit (range 7) 986 | -10/Mines | Met a Derelict bent on vengeance 999 | -10/Mines | Entered Materials 999 | -9/Materials | Evolved 2 slots: Propulsion x2 1264 | -9/Materials | Discovered new exit (range 15) 1303 | -9/Materials | Entered Mines 1314 | -9/Mines | Discovered new exit (range 12) 1324 | -9/Mines | Entered Materials 1324 | -8/Materials | Evolved 2 slots: Utility x2 1436 | -8/Materials | Repaired Imp. Ion Engine 1463 | -8/Materials | Repaired Aluminum Leg+ 1502 | -8/Materials | Repaired Imp. Heat Sink 1530 | -8/Materials | Repaired Aluminum Leg+ 2249 | -8/Materials | Build established: Scavenger-Mutant 2268 | -8/Materials | Discovered new exit (range 4) 2273 | -8/Materials | Entered Factory 2273 | -7/Factory | Evolved 2 slots: Utility x1, Weapon x1 3032 | -7/Factory | Discovered new exit (range 15) 3049 | -7/Factory | Entered another Factory area 3049 | -6/Factory | Evolved 2 slots: Power x1, Propulsion x1 3344 | -6/Factory | Lost 18 parts (3p5n4u6w) 3659 | -6/Factory | Core integrity fell below 50% 3726 | -6/Factory | Destroyed 10 combat bots 3742 | -6/Factory | Lost 15 parts (2p5n4u4w) 3787 | -6/Factory | System corruption reached 10% 4067 | -6/Factory | Build established: Scavenger-Gunner 4138 | -6/Factory | Spotted B-75 Beast 4227 | -6/Factory | Core integrity fell below 20% 4237 | -6/Factory | Destroyed B-75 Beast 4254 | -6/Factory | Lost 8 parts (3n2u3w) 4353 | -6/Factory | Garrison activated, responded to threat 4397 | -6/Factory | Released all parts (4) 4426 | -6/Factory | Lost 10 parts (2p2n3u3w) 4506 | -6/Factory | Destroyed by Y-54 Guardian with Gatling Laser Last Messages --------------- 04461_ Field strength at 76. 04462_ Field strength at 70. 04463_ Field strength at 64. 04464_ Field strength at 58. 04465_ Field strength at 52. 04466_ Field strength at 46. 04467_ Field strength at 40. 04468_ Field strength at 34. 04469_ Field strength at 28. 04470_ Field strength at 22. 04471_ Field strength at 16. 04472_ Field strength at 10. 04473_ Field strength at 4. 04474_ Stasis field depleted. 04475_ SPVIBO9CM9Q>O#PW V4WO3R 04477_ Acquired Sml. Storage Unit. 04479_ Dropped IFF Parser. 04491_ System corrupted: Matter fused (-7). 04499_ Dropped Lgt. Fission Core. 04500_ Acquired Phase Shifter. Map ----- +----------------------------------------------------+ | | | | | | | | | | | | | | | | | | | | | | | | | | | | | | | | | | | | | | | | | | | | | | | ############?????????########## | | # ! ] Y#?????????# | | # !=@ #??????????# | | # ! !! ]#??????????# | | # #??????????# | | # """ """ #???######## | | # """ """ #???# + | | # """ """ #???# ########+# | | # #???# ###### | | ?####+###+#???# | | ???# #???############# | | ???# #??############## | | ???# #??# + "" | | ???# #??# # "" | | ??## #??# # "T | | ??# # #??# #! "" | | ??# * # #??# # "" | | ??# " # #??# ! + | | ??# # #### ! # | | ??# # + # | | ??### ######## # | | ????#^???????# # | | ????# ???????# # | | ????# ???????# # | | ????# ???????#+############ | | ????# ????????????????????# | | ????#?????????????######### | +----------------------------------------------------+ Best States ------------- Heat Dissipation 56 Energy Generation 29 Energy Capacity 350 Matter Stores 450 Matter Capacity 450 Sight Range 16 Robot Scan Range 15 Terrain Scan Density 10 Armor Coverage 300 Resistance: KI 20 Evasion (%) 63 Targeting Accuracy 10 Recoil Reduction 4 Matter Filtering 30 Kinecelleration 30 Offensive Hacking 20 Item Schematics ----------------- None Robot Schematics ------------------ None Fabricated ------------ Nothing Repaired ---------- Lgt. Armor Plating | 28% | -10/Materials Imp. Ion Engine | 44% | -8/Materials Aluminum Leg | 32% | -8/Materials Imp. Heat Sink | 60% | -8/Materials Aluminum Leg | 47% | -8/Materials Studied --------- Aluminum Leg | -9/Materials | Hacked Alien Tech Used ----------------- None Achievements -------------- None Challenges ------------ None Game ------ Seed MiningTimingBotcube Manual? 0 Play Time 01:22:09 Cumulative 25.2 hours Start 2026.04.11 @ 12:45:43 End 2026.04.12 @ 23:25:40 Sessions 3 Manual Loads 0 Difficulty Rogue Special Mode None Game No. 20 Rogue 20 Adventurer 0 Explorer 0 Win Type - Total 0 Types 0/0/0/0/0/0/0/0/0/0 Lore% 8 Gallery% 23 Achievement% 17 Wizard Run 0 Options --------- Layout 1 ASCII 0 Keyboard 1 Movement Numpad Keybinds 0 Fullscreen 1 Font 32/SmallcapsGlow Map View 50x35 Zoom Use 0% Tactical HUD 1 Map Filters NONE Filters NONE Steam 1 RUN: 262cc138-4892-416c-9968-7f9a77981128